[Event "*** SCC Grand Prix: Titled Tuesday Blitz"]
[Site "Chess.com"]
[Date "2020.06.02"]
[Round "9"]
[White "Bhagya_2312"]
[Black "Redbandit87"]
[Result "1-0"]
[WhiteElo "2171"]
[BlackElo "2323"]
[TimeControl "180+1"]
[EndTime "11:47:14 PDT"]
[Termination "Bhagya_2312 won by resignation"]

1. e4 {[%clk 0:03:00.9]} 1... e5 {[%clk 0:02:58.6]} 2. Nf3 {[%clk 0:03:00.4]}
2... Nc6 {[%clk 0:02:58]} 3. Bc4 {[%clk 0:02:59.8]} 3... Nf6 {[%clk 0:02:57.3]}
4. d3 {[%clk 0:02:59.2]} 4... h6 {[%clk 0:02:54.3]} 5. O-O {[%clk 0:02:49]} 5...
g5 {[%clk 0:02:52.3]} 6. c3 {[%clk 0:02:42.9]} 6... g4 {[%clk 0:02:29.9]} 7.
Nfd2 {[%clk 0:02:33.1]} 7... Bg7 {[%clk 0:02:24]} 8. f4 {[%clk 0:02:25.6]} 8...
exf4 {[%clk 0:02:18.9]} 9. Rxf4 {[%clk 0:02:24.3]} 9... d5 {[%clk 0:02:19.5]}
10. exd5 {[%clk 0:02:15.1]} 10... Nxd5 {[%clk 0:02:19.4]} 11. Qe2+ {[%clk
0:02:00.8]} 11... Be6 {[%clk 0:02:14.9]} 12. Rxg4 {[%clk 0:01:53.7]} 12... Be5
{[%clk 0:01:56]} 13. Re4 {[%clk 0:01:45]} 13... Qd6 {[%clk 0:01:32.2]} 14. Nf3
{[%clk 0:01:43.5]} 14... Bf6 {[%clk 0:01:24.4]} 15. Be3 {[%clk 0:01:00.4]} 15...
O-O-O {[%clk 0:01:20.2]} 16. Nbd2 {[%clk 0:00:53.4]} 16... Rhe8 {[%clk 0:01:06]}
17. Nf1 {[%clk 0:00:42.6]} 17... Bf5 {[%clk 0:01:02.1]} 18. Rxe8 {[%clk
0:00:40.3]} 18... Rxe8 {[%clk 0:01:00.6]} 19. Qf2 {[%clk 0:00:39.7]} 19... Nb6
{[%clk 0:00:29.5]} 20. Bxb6 {[%clk 0:00:30.3]} 20... axb6 {[%clk 0:00:29.3]} 21.
d4 {[%clk 0:00:29.9]} 21... Bg6 {[%clk 0:00:26.5]} 22. Ng3 {[%clk 0:00:28.2]}
22... h5 {[%clk 0:00:20.2]} 23. Re1 {[%clk 0:00:25.8]} 23... Rxe1+ {[%clk
0:00:19.6]} 24. Qxe1 {[%clk 0:00:25.9]} 24... h4 {[%clk 0:00:17.4]} 25. Ne4
{[%clk 0:00:24.4]} 25... Qe7 {[%clk 0:00:15.7]} 26. Nxf6 {[%clk 0:00:23.3]}
26... Qxf6 {[%clk 0:00:16.6]} 27. Qe8+ {[%clk 0:00:21.9]} 27... Nd8 {[%clk
0:00:16.8]} 28. Ne5 {[%clk 0:00:20.7]} 28... Qd6 {[%clk 0:00:13.4]} 29. Bxf7
{[%clk 0:00:19.2]} 29... Bxf7 {[%clk 0:00:13.7]} 30. Nxf7 {[%clk 0:00:19.2]}
30... Qd7 {[%clk 0:00:14.2]} 31. Qxd8+ {[%clk 0:00:18.3]} 31... Qxd8 {[%clk
0:00:14.3]} 32. Nxd8 {[%clk 0:00:18.9]} 32... Kxd8 {[%clk 0:00:15.2]} 33. g4
{[%clk 0:00:19.1]} 33... Ke7 {[%clk 0:00:14.9]} 34. h3 {[%clk 0:00:19.2]} 34...
Kf6 {[%clk 0:00:15.7]} 35. Kf2 {[%clk 0:00:19.8]} 35... Kg5 {[%clk 0:00:16.3]}
36. Ke3 {[%clk 0:00:20.4]} 36... c6 {[%clk 0:00:17]} 37. c4 {[%clk 0:00:20.6]}
37... b5 {[%clk 0:00:17.9]} 38. b3 {[%clk 0:00:19.3]} 38... b4 {[%clk
0:00:17.4]} 39. Ke4 {[%clk 0:00:19.3]} 39... Kf6 {[%clk 0:00:17.3]} 40. d5
{[%clk 0:00:19.4]} 40... c5 {[%clk 0:00:17.1]} 41. Kf4 {[%clk 0:00:18.1]} 41...
b6 {[%clk 0:00:17.7]} 42. g5+ {[%clk 0:00:18.2]} 42... Kg6 {[%clk 0:00:18.1]}
43. d6 {[%clk 0:00:17.9]} 1-0

[Event "*** SCC Grand Prix: Titled Tuesday Blitz"]
[Site "Chess.com"]
[Date "2020.06.02"]
[Round "9"]
[White "Colombiano07"]
[Black "stoleriu"]
[Result "0-1"]
[WhiteElo "2354"]
[BlackElo "2550"]
[TimeControl "180+1"]
[EndTime "11:47:15 PDT"]
[Termination "stoleriu won by resignation"]

1. Nf3 {[%clk 0:02:54.4]} 1... Nf6 {[%clk 0:03:00]} 2. b3 {[%clk 0:02:55.3]}
2... e6 {[%clk 0:03:00.1]} 3. Bb2 {[%clk 0:02:56.2]} 3... b6 {[%clk 0:02:59.8]}
4. e3 {[%clk 0:02:57.1]} 4... Bb7 {[%clk 0:03:00]} 5. Be2 {[%clk 0:02:57.7]}
5... Be7 {[%clk 0:02:59.8]} 6. O-O {[%clk 0:02:57.2]} 6... O-O {[%clk
0:03:00.1]} 7. c4 {[%clk 0:02:56]} 7... c5 {[%clk 0:03:00.2]} 8. d4 {[%clk
0:02:54.6]} 8... cxd4 {[%clk 0:03:01.1]} 9. exd4 {[%clk 0:02:55.5]} 9... d5
{[%clk 0:03:01.4]} 10. Nc3 {[%clk 0:02:54.2]} 10... Nbd7 {[%clk 0:03:01.1]} 11.
Re1 {[%clk 0:02:36.8]} 11... Rc8 {[%clk 0:03:00.9]} 12. Rc1 {[%clk 0:02:36]}
12... a6 {[%clk 0:02:59.7]} 13. Ne5 {[%clk 0:02:35.4]} 13... dxc4 {[%clk
0:02:55.8]} 14. bxc4 {[%clk 0:02:28.9]} 14... Nxe5 {[%clk 0:02:54.8]} 15. dxe5
{[%clk 0:02:29.8]} 15... Nd7 {[%clk 0:02:55.2]} 16. Bd3 {[%clk 0:02:09.4]} 16...
h6 {[%clk 0:02:50.7]} 17. Ne4 {[%clk 0:02:06.9]} 17... Nc5 {[%clk 0:02:47.4]}
18. Nxc5 {[%clk 0:02:05.4]} 18... Bxc5 {[%clk 0:02:48.3]} 19. Be4 {[%clk
0:01:52.7]} 19... Bxe4 {[%clk 0:01:57]} 20. Rxe4 {[%clk 0:01:51.4]} 20... Qg5
{[%clk 0:01:54.7]} 21. Qg4 {[%clk 0:01:35.7]} 21... Qxg4 {[%clk 0:01:49.3]} 22.
Rxg4 {[%clk 0:01:36.6]} 22... Rfd8 {[%clk 0:01:49.7]} 23. Bc3 {[%clk 0:01:22.6]}
23... Rd3 {[%clk 0:01:46.2]} 24. Kf1 {[%clk 0:01:19.9]} 24... Rcd8 {[%clk
0:01:33.3]} 25. Ke2 {[%clk 0:01:18.8]} 25... g6 {[%clk 0:01:25.5]} 26. Rg3
{[%clk 0:01:07.4]} 26... R3d7 {[%clk 0:01:20.9]} 27. Be1 {[%clk 0:00:42.1]}
27... Bd4 {[%clk 0:01:15.8]} 28. Rb3 {[%clk 0:00:39.5]} 28... Kf8 {[%clk
0:01:05.9]} 29. a4 {[%clk 0:00:34.2]} 29... Ke8 {[%clk 0:01:03.4]} 30. f4 {[%clk
0:00:32.2]} 30... Bc5 {[%clk 0:00:59.7]} 31. Rc2 {[%clk 0:00:29.5]} 31... Rd4
{[%clk 0:00:55.1]} 32. g3 {[%clk 0:00:23.4]} 32... Re4+ {[%clk 0:00:54.2]} 33.
Kf1 {[%clk 0:00:19.9]} 33... Rd1 {[%clk 0:00:53.4]} 34. Re2 {[%clk 0:00:18.7]}
34... Rxc4 {[%clk 0:00:53.3]} 35. Kg2 {[%clk 0:00:18.2]} 35... Rxa4 {[%clk
0:00:52.6]} 36. Bf2 {[%clk 0:00:18.2]} 36... Bxf2 {[%clk 0:00:48.7]} 37. Kxf2
{[%clk 0:00:19.1]} 37... b5 {[%clk 0:00:49.3]} 38. Rc2 {[%clk 0:00:18.8]} 38...
Rd7 {[%clk 0:00:41.1]} 39. Rc8+ {[%clk 0:00:17.3]} 39... Ke7 {[%clk 0:00:41.2]}
40. Ra8 {[%clk 0:00:17.3]} 40... Ra2+ {[%clk 0:00:37.8]} 41. Kf3 {[%clk
0:00:17.1]} 41... h5 {[%clk 0:00:37.8]} 42. h4 {[%clk 0:00:17.2]} 42... Rb7
{[%clk 0:00:32.6]} 43. Rd3 {[%clk 0:00:14.9]} 43... b4 {[%clk 0:00:25.9]} 44.
Rdd8 {[%clk 0:00:14.8]} 44... b3 {[%clk 0:00:26.2]} 0-1

[Event "*** SCC Grand Prix: Titled Tuesday Blitz"]
[Site "Chess.com"]
[Date "2020.06.02"]
[Round "9"]
[White "Andreikka"]
[Black "Man-Chuk"]
[Result "1-0"]
[WhiteElo "2932"]
[BlackElo "2780"]
[TimeControl "180+1"]
[EndTime "11:47:17 PDT"]
[Termination "Andreikka won on time"]

1. c4 {[%clk 0:03:00.9]} 1... e5 {[%clk 0:02:59.6]} 2. Nc3 {[%clk 0:02:57.7]}
2... Nf6 {[%clk 0:03:00]} 3. Nf3 {[%clk 0:02:57.8]} 3... Nc6 {[%clk 0:03:00.2]}
4. e4 {[%clk 0:02:58.4]} 4... Bc5 {[%clk 0:02:58.7]} 5. Nxe5 {[%clk 0:02:58.2]}
5... Nxe5 {[%clk 0:02:59.6]} 6. d4 {[%clk 0:02:58.7]} 6... Bb4 {[%clk
0:02:58.4]} 7. dxe5 {[%clk 0:02:59.2]} 7... Nxe4 {[%clk 0:02:59.1]} 8. Qf3
{[%clk 0:02:59.8]} 8... Nxc3 {[%clk 0:02:58.5]} 9. bxc3 {[%clk 0:03:00.3]} 9...
Ba5 {[%clk 0:02:58.8]} 10. Bf4 {[%clk 0:02:59.5]} 10... O-O {[%clk 0:02:43.8]}
11. O-O-O {[%clk 0:02:58.4]} 11... Qe7 {[%clk 0:02:39]} 12. Kb2 {[%clk
0:02:58.9]} 12... Rb8 {[%clk 0:02:27.5]} 13. Qe3 {[%clk 0:02:58.7]} 13... b5
{[%clk 0:02:11]} 14. c5 {[%clk 0:02:56.9]} 14... Bb7 {[%clk 0:01:42.3]} 15. h4
{[%clk 0:02:28.8]} 15... Qe6 {[%clk 0:01:38.7]} 16. Qd4 {[%clk 0:02:21.7]} 16...
Bc6 {[%clk 0:01:12.1]} 17. Rh3 {[%clk 0:02:18.7]} 17... Rfe8 {[%clk 0:00:54.9]}
18. Re3 {[%clk 0:02:11.3]} 18... b4 {[%clk 0:00:46.4]} 19. c4 {[%clk 0:02:10.7]}
19... Ba4 {[%clk 0:00:43.9]} 20. Rdd3 {[%clk 0:01:58.1]} 20... Qg4 {[%clk
0:00:39.3]} 21. g3 {[%clk 0:01:34]} 21... Rbd8 {[%clk 0:00:17.2]} 22. Bg5 {[%clk
0:01:22.9]} 22... Qxd4+ {[%clk 0:00:14.6]} 23. Rxd4 {[%clk 0:01:23.8]} 23... f6
{[%clk 0:00:10.9]} 24. exf6 {[%clk 0:01:23.3]} 24... Rxe3 {[%clk 0:00:07]} 25.
Bxe3 {[%clk 0:01:15.8]} 25... gxf6 {[%clk 0:00:07.5]} 26. Bd3 {[%clk 0:01:15.3]}
26... Re8 {[%clk 0:00:06.1]} 27. Bf5 {[%clk 0:01:13.6]} 27... Re7 {[%clk
0:00:05.6]} 28. h5 {[%clk 0:01:01.8]} 28... Bc6 {[%clk 0:00:05.4]} 29. h6 {[%clk
0:01:00]} 29... Kf8 {[%clk 0:00:04.4]} 30. Kb3 {[%clk 0:00:57.4]} 30... Ke8
{[%clk 0:00:03.7]} 31. Rg4 {[%clk 0:00:56.6]} 31... Kf8 {[%clk 0:00:03.8]} 32.
Bd3 {[%clk 0:00:53.7]} 32... Re6 {[%clk 0:00:02.6]} 33. Bxh7 {[%clk 0:00:52.7]}
33... Bf3 {[%clk 0:00:01.5]} 34. Rg8+ {[%clk 0:00:52.2]} 34... Kf7 {[%clk
0:00:01.4]} 35. Rg7+ {[%clk 0:00:52.8]} 35... Kf8 {[%clk 0:00:02.3]} 36. Bf5
{[%clk 0:00:52.7]} 36... Bd1+ {[%clk 0:00:01.6]} 37. Kb2 {[%clk 0:00:52.4]}
37... Re5 {[%clk 0:00:02.5]} 38. Bxd7 {[%clk 0:00:52.4]} 38... Rh5 {[%clk
0:00:01.4]} 39. Be6 {[%clk 0:00:49.7]} 39... b3 {[%clk 0:00:01.7]} 40. Rf7+
{[%clk 0:00:46.4]} 40... Ke8 {[%clk 0:00:01.7]} 41. axb3 {[%clk 0:00:46.2]}
41... Bb4 {[%clk 0:00:02]} 42. Rxc7 {[%clk 0:00:44.4]} 42... a5 {[%clk
0:00:01.7]} 43. h7 {[%clk 0:00:44.2]} 43... Kd8 {[%clk 0:00:01.3]} 44. Rd7+
{[%clk 0:00:43.8]} 44... Ke8 {[%clk 0:00:01.6]} 45. Rg7 {[%clk 0:00:44.1]} 1-0

[Event "*** SCC Grand Prix: Titled Tuesday Blitz"]
[Site "Chess.com"]
[Date "2020.06.02"]
[Round "9"]
[White "BJthechessgod"]
[Black "cukin84"]
[Result "1-0"]
[WhiteElo "2075"]
[BlackElo "2180"]
[TimeControl "180+1"]
[EndTime "11:47:18 PDT"]
[Termination "BJthechessgod won by checkmate"]

1. e4 {[%clk 0:03:00.9]} 1... c6 {[%clk 0:02:59.6]} 2. Nf3 {[%clk 0:03:01.5]}
2... d5 {[%clk 0:02:59.2]} 3. exd5 {[%clk 0:03:01.9]} 3... cxd5 {[%clk
0:02:58.9]} 4. d4 {[%clk 0:03:02.5]} 4... Nc6 {[%clk 0:02:59.2]} 5. Bd3 {[%clk
0:02:54.7]} 5... Bg4 {[%clk 0:02:58.3]} 6. c3 {[%clk 0:02:53.7]} 6... e6 {[%clk
0:02:57.8]} 7. O-O {[%clk 0:02:25.5]} 7... Nf6 {[%clk 0:02:57.3]} 8. Bg5 {[%clk
0:02:22.3]} 8... Be7 {[%clk 0:02:56.7]} 9. Nbd2 {[%clk 0:02:22.7]} 9... O-O
{[%clk 0:02:54.7]} 10. Qc2 {[%clk 0:02:22.9]} 10... h6 {[%clk 0:02:44.7]} 11.
Bh4 {[%clk 0:02:09]} 11... Rc8 {[%clk 0:02:40.9]} 12. a3 {[%clk 0:01:54.9]}
12... a6 {[%clk 0:02:40.1]} 13. h3 {[%clk 0:01:54.2]} 13... Bxf3 {[%clk
0:02:39.6]} 14. Nxf3 {[%clk 0:01:53.4]} 14... b5 {[%clk 0:02:39.8]} 15. Rae1
{[%clk 0:01:47.9]} 15... b4 {[%clk 0:02:39.3]} 16. axb4 {[%clk 0:01:31]} 16...
Nxb4 {[%clk 0:02:38]} 17. Qb1 {[%clk 0:01:31.7]} 17... Nxd3 {[%clk 0:02:37.6]}
18. Qxd3 {[%clk 0:01:32.6]} 18... Ne4 {[%clk 0:02:35.5]} 19. Bxe7 {[%clk
0:01:30.4]} 19... Qxe7 {[%clk 0:02:35.2]} 20. Qxa6 {[%clk 0:01:18.6]} 20... Rb8
{[%clk 0:02:35]} 21. Re2 {[%clk 0:00:59.2]} 21... Qc7 {[%clk 0:02:18.7]} 22. Nd2
{[%clk 0:00:58.1]} 22... Rxb2 {[%clk 0:02:02.5]} 23. Nxe4 {[%clk 0:00:55.6]}
23... Rxe2 {[%clk 0:02:01.8]} 24. Qxe2 {[%clk 0:00:56.2]} 24... dxe4 {[%clk
0:02:01.3]} 25. Rc1 {[%clk 0:00:51.9]} 25... f5 {[%clk 0:01:59.6]} 26. c4 {[%clk
0:00:51]} 26... Rd8 {[%clk 0:01:53.6]} 27. Qe3 {[%clk 0:00:50]} 27... Qd6 {[%clk
0:01:47.9]} 28. Rd1 {[%clk 0:00:46.1]} 28... Qa6 {[%clk 0:01:44.8]} 29. Qb3
{[%clk 0:00:43.9]} 29... Rc8 {[%clk 0:01:39.4]} 30. c5 {[%clk 0:00:41.8]} 30...
Kh7 {[%clk 0:01:39]} 31. g3 {[%clk 0:00:40.9]} 31... Qc6 {[%clk 0:01:36.7]} 32.
Qc4 {[%clk 0:00:39.6]} 32... Ra8 {[%clk 0:01:35]} 33. Rb1 {[%clk 0:00:34.2]}
33... Ra4 {[%clk 0:01:33.7]} 34. Rb4 {[%clk 0:00:28.5]} 34... Ra1+ {[%clk
0:01:31.2]} 35. Kh2 {[%clk 0:00:25.8]} 35... e3 {[%clk 0:01:30.8]} 36. d5 {[%clk
0:00:19.7]} 36... exd5 {[%clk 0:01:25.1]} 37. Qc3 {[%clk 0:00:12.2]} 37... Rf1
{[%clk 0:01:01.1]} 38. Qxe3 {[%clk 0:00:11.9]} 38... Qa6 {[%clk 0:00:49.7]} 39.
Qf3 {[%clk 0:00:08]} 39... g6 {[%clk 0:00:43.9]} 40. Rd4 {[%clk 0:00:08]} 40...
Qa1 {[%clk 0:00:42.8]} 41. Rxd5 {[%clk 0:00:07]} 41... Qa7 {[%clk 0:00:35.7]}
42. Kg2 {[%clk 0:00:05.1]} 42... Ra1 {[%clk 0:00:32.9]} 43. c6 {[%clk
0:00:04.4]} 43... Qb8 {[%clk 0:00:26.1]} 44. Rd7+ {[%clk 0:00:04.4]} 44... Kh8
{[%clk 0:00:25.4]} 45. Qc3+ {[%clk 0:00:03.8]} 45... Kg8 {[%clk 0:00:23.9]} 46.
Qg7# {[%clk 0:00:04.1]} 1-0

[Event "*** SCC Grand Prix: Titled Tuesday Blitz"]
[Site "Chess.com"]
[Date "2020.06.02"]
[Round "9"]
[White "Dynamikus"]
[Black "Radzio1987"]
[Result "0-1"]
[WhiteElo "2773"]
[BlackElo "2913"]
[TimeControl "180+1"]
[EndTime "11:47:19 PDT"]
[Termination "Radzio1987 won by resignation"]

1. e4 {[%clk 0:03:00.9]} 1... c6 {[%clk 0:02:58.4]} 2. d4 {[%clk 0:02:59.7]}
2... d5 {[%clk 0:02:59.3]} 3. Nd2 {[%clk 0:03:00.4]} 3... dxe4 {[%clk
0:02:59.2]} 4. Nxe4 {[%clk 0:03:01.3]} 4... Nd7 {[%clk 0:02:59.8]} 5. Ng5 {[%clk
0:02:56.7]} 5... Ngf6 {[%clk 0:02:59.4]} 6. Bd3 {[%clk 0:02:55.8]} 6... e6
{[%clk 0:02:59.3]} 7. N1f3 {[%clk 0:02:53.5]} 7... Bd6 {[%clk 0:02:59]} 8. Qe2
{[%clk 0:02:53.2]} 8... h6 {[%clk 0:02:59.3]} 9. Ne4 {[%clk 0:02:52.6]} 9...
Nxe4 {[%clk 0:02:59.9]} 10. Qxe4 {[%clk 0:02:53.5]} 10... Qc7 {[%clk 0:03:00.5]}
11. O-O {[%clk 0:02:48.3]} 11... b6 {[%clk 0:03:00.3]} 12. Qg4 {[%clk
0:02:40.3]} 12... Kf8 {[%clk 0:02:59.8]} 13. b3 {[%clk 0:02:38]} 13... Bb7
{[%clk 0:03:00]} 14. Bb2 {[%clk 0:02:34.6]} 14... Nf6 {[%clk 0:02:58.1]} 15. Qh3
{[%clk 0:02:34.4]} 15... Nd5 {[%clk 0:02:58.1]} 16. Qh4 {[%clk 0:02:17.6]} 16...
Nf4 {[%clk 0:02:52.3]} 17. Rfe1 {[%clk 0:02:09.1]} 17... Rd8 {[%clk 0:02:47.7]}
18. Rad1 {[%clk 0:01:59.4]} 18... g5 {[%clk 0:02:21.2]} 19. Qg4 {[%clk
0:01:44.2]} 19... Rg8 {[%clk 0:02:19.8]} 20. Ne5 {[%clk 0:01:39.1]} 20... c5
{[%clk 0:02:09.2]} 21. Bf1 {[%clk 0:01:35.3]} 21... h5 {[%clk 0:01:56.4]} 22.
Qg3 {[%clk 0:01:34.8]} 22... f6 {[%clk 0:01:55.6]} 23. dxc5 {[%clk 0:01:27.1]}
23... Bxe5 {[%clk 0:01:32.1]} 24. Rxd8+ {[%clk 0:01:28]} 24... Qxd8 {[%clk
0:01:31.8]} 25. Bxe5 {[%clk 0:01:28.2]} 25... fxe5 {[%clk 0:01:32.7]} 26. cxb6
{[%clk 0:01:28.6]} 26... axb6 {[%clk 0:01:25.8]} 27. Qe3 {[%clk 0:01:26.6]}
27... Qd4 {[%clk 0:01:23.8]} 28. Qxe5 {[%clk 0:01:24.5]} 28... Qxe5 {[%clk
0:01:23.8]} 29. Rxe5 {[%clk 0:01:25.4]} 29... Ke7 {[%clk 0:01:17]} 30. Rb5
{[%clk 0:01:25.4]} 30... Rd8 {[%clk 0:01:15.3]} 31. Rxb6 {[%clk 0:01:22.5]}
31... Be4 {[%clk 0:01:15.4]} 32. f3 {[%clk 0:01:14]} 32... Bxc2 {[%clk
0:01:15.2]} 33. g3 {[%clk 0:01:14.1]} 33... Nd5 {[%clk 0:01:11.3]} 34. Rb7+
{[%clk 0:01:12.4]} 34... Kf6 {[%clk 0:01:10.8]} 35. Kf2 {[%clk 0:01:10.3]} 35...
Nc3 {[%clk 0:00:58]} 36. Rc7 {[%clk 0:01:08.4]} 36... Nd1+ {[%clk 0:00:48.4]}
37. Ke2 {[%clk 0:01:08.6]} 37... Bd3+ {[%clk 0:00:43.7]} 38. Kxd1 {[%clk
0:01:08.9]} 38... Bxf1+ {[%clk 0:00:43.9]} 39. Ke1 {[%clk 0:01:09.8]} 39... Ba6
{[%clk 0:00:42.7]} 40. a4 {[%clk 0:01:03.5]} 40... Rb8 {[%clk 0:00:42.2]} 41.
Rc6 {[%clk 0:00:50]} 41... Bd3 {[%clk 0:00:35.7]} 42. Rc3 {[%clk 0:00:49.9]}
42... Bf5 {[%clk 0:00:35.5]} 43. Kf2 {[%clk 0:00:49.9]} 43... Ke5 {[%clk
0:00:35.4]} 44. Ke3 {[%clk 0:00:46.7]} 44... g4 {[%clk 0:00:35.7]} 45. f4+
{[%clk 0:00:44.4]} 45... Kd5 {[%clk 0:00:35.7]} 46. Kd2 {[%clk 0:00:43.9]} 46...
Be4 {[%clk 0:00:30.1]} 47. Re3 {[%clk 0:00:44.1]} 47... Kd4 {[%clk 0:00:25.6]}
48. Rc3 {[%clk 0:00:44.4]} 48... Bd5 {[%clk 0:00:25.2]} 49. Rd3+ {[%clk
0:00:43.5]} 49... Kc5 {[%clk 0:00:24.7]} 50. Rc3+ {[%clk 0:00:41.2]} 50... Kb4
{[%clk 0:00:24.6]} 51. Kc2 {[%clk 0:00:38.3]} 51... Ka3 {[%clk 0:00:24.8]} 0-1

[Event "*** SCC Grand Prix: Titled Tuesday Blitz"]
[Site "Chess.com"]
[Date "2020.06.02"]
[Round "9"]
[White "kudesnik84"]
[Black "JozefKneht"]
[Result "0-1"]
[WhiteElo "2342"]
[BlackElo "2499"]
[TimeControl "180+1"]
[EndTime "11:47:20 PDT"]
[Termination "JozefKneht won by checkmate"]

1. e4 {[%clk 0:03:00.9]} 1... e5 {[%clk 0:02:58.8]} 2. Nf3 {[%clk 0:02:54.2]}
2... Nc6 {[%clk 0:02:58.6]} 3. Bc4 {[%clk 0:02:50.2]} 3... Nf6 {[%clk
0:02:57.2]} 4. Ng5 {[%clk 0:02:44.4]} 4... d5 {[%clk 0:02:56.7]} 5. exd5 {[%clk
0:02:43.4]} 5... Na5 {[%clk 0:02:57.2]} 6. Bb5+ {[%clk 0:02:42.8]} 6... c6
{[%clk 0:02:57.7]} 7. dxc6 {[%clk 0:02:43.7]} 7... bxc6 {[%clk 0:02:57.8]} 8.
Bd3 {[%clk 0:02:44.2]} 8... Nd5 {[%clk 0:02:55.1]} 9. Nf3 {[%clk 0:02:34.8]}
9... Bd6 {[%clk 0:02:53.8]} 10. O-O {[%clk 0:02:16.5]} 10... O-O {[%clk
0:02:46]} 11. Re1 {[%clk 0:02:15.2]} 11... Qc7 {[%clk 0:02:29]} 12. Nc3 {[%clk
0:01:55.9]} 12... Bg4 {[%clk 0:02:26.6]} 13. h3 {[%clk 0:01:52.3]} 13... Bh5
{[%clk 0:02:25.6]} 14. Ne4 {[%clk 0:01:50.4]} 14... Nf4 {[%clk 0:02:20.6]} 15.
Bf1 {[%clk 0:01:42.5]} 15... f5 {[%clk 0:02:12.1]} 16. Ng3 {[%clk 0:01:42.1]}
16... Bg6 {[%clk 0:02:06.7]} 17. b4 {[%clk 0:01:16.2]} 17... Nb7 {[%clk
0:01:57.4]} 18. Bb2 {[%clk 0:00:42]} 18... Rae8 {[%clk 0:01:56.2]} 19. Nh4
{[%clk 0:00:30.2]} 19... Bxb4 {[%clk 0:01:50.8]} 20. Nxg6 {[%clk 0:00:19.6]}
20... hxg6 {[%clk 0:01:50.2]} 21. Bc3 {[%clk 0:00:12.7]} 21... Bd6 {[%clk
0:01:45.8]} 22. Rb1 {[%clk 0:00:12.4]} 22... Kh7 {[%clk 0:01:35]} 23. Bc4 {[%clk
0:00:12.9]} 23... Nc5 {[%clk 0:01:18.3]} 24. d3 {[%clk 0:00:13.3]} 24... Nd7
{[%clk 0:01:15.6]} 25. Qf3 {[%clk 0:00:13.3]} 25... Nf6 {[%clk 0:01:11.8]} 26.
Ne2 {[%clk 0:00:13.3]} 26... e4 {[%clk 0:01:05.9]} 27. dxe4 {[%clk 0:00:08.2]}
27... fxe4 {[%clk 0:01:05.3]} 28. Qe3 {[%clk 0:00:08]} 28... N6d5 {[%clk
0:00:59.2]} 29. Qd2 {[%clk 0:00:05.5]} 29... Nxe2+ {[%clk 0:00:40.2]} 30. Rxe2
{[%clk 0:00:06.4]} 30... Bf4 {[%clk 0:00:38.4]} 31. Qe1 {[%clk 0:00:06.8]} 31...
e3 {[%clk 0:00:38.3]} 32. fxe3 {[%clk 0:00:06]} 32... Bg3 {[%clk 0:00:32.9]} 33.
Qd2 {[%clk 0:00:05.5]} 33... Nf6 {[%clk 0:00:25.1]} 34. e4 {[%clk 0:00:05]}
34... Nxe4 {[%clk 0:00:22.4]} 35. Rxe4 {[%clk 0:00:05.3]} 35... Rxe4 {[%clk
0:00:21.5]} 36. Qg5 {[%clk 0:00:05.3]} 36... Rxc4 {[%clk 0:00:19]} 37. Rb3
{[%clk 0:00:02.4]} 37... Rxc3 {[%clk 0:00:17]} 38. Rxc3 {[%clk 0:00:02.5]} 38...
Bh2+ {[%clk 0:00:14.1]} 39. Kh1 {[%clk 0:00:02.2]} 39... Rf1# {[%clk 0:00:15]}
0-1

[Event "*** SCC Grand Prix: Titled Tuesday Blitz"]
[Site "Chess.com"]
[Date "2020.06.02"]
[Round "9"]
[White "Morshynska"]
[Black "Witik"]
[Result "1-0"]
[WhiteElo "2202"]
[BlackElo "2525"]
[TimeControl "180+1"]
[EndTime "11:47:20 PDT"]
[Termination "Morshynska won on time"]

1. e4 {[%clk 0:03:00.9]} 1... c6 {[%clk 0:02:51.8]} 2. d4 {[%clk 0:03:00.2]}
2... d5 {[%clk 0:02:51.4]} 3. Nd2 {[%clk 0:02:59.6]} 3... dxe4 {[%clk
0:02:49.5]} 4. Nxe4 {[%clk 0:03:00.5]} 4... Nf6 {[%clk 0:02:49.3]} 5. Nxf6+
{[%clk 0:03:00]} 5... exf6 {[%clk 0:02:49.6]} 6. c3 {[%clk 0:02:59.4]} 6... Bd6
{[%clk 0:02:49.7]} 7. Bd3 {[%clk 0:02:58.2]} 7... O-O {[%clk 0:02:49.3]} 8. Qc2
{[%clk 0:02:53.9]} 8... Re8+ {[%clk 0:02:49.2]} 9. Ne2 {[%clk 0:02:52]} 9... h5
{[%clk 0:02:49.6]} 10. Be3 {[%clk 0:02:33.1]} 10... Nd7 {[%clk 0:02:48.1]} 11.
O-O-O {[%clk 0:02:27.7]} 11... Nf8 {[%clk 0:02:46.2]} 12. Nf4 {[%clk 0:02:06.6]}
12... Bxf4 {[%clk 0:02:37.3]} 13. Bxf4 {[%clk 0:02:07.5]} 13... Be6 {[%clk
0:02:37.7]} 14. Kb1 {[%clk 0:01:56]} 14... b5 {[%clk 0:02:29.2]} 15. f3 {[%clk
0:01:34.5]} 15... a5 {[%clk 0:02:22.5]} 16. h4 {[%clk 0:01:29.5]} 16... Qd5
{[%clk 0:02:09.5]} 17. b3 {[%clk 0:01:19.5]} 17... a4 {[%clk 0:02:09.4]} 18. b4
{[%clk 0:01:13]} 18... a3 {[%clk 0:02:06.5]} 19. Rhg1 {[%clk 0:00:53.3]} 19...
Ng6 {[%clk 0:02:01.4]} 20. Bc1 {[%clk 0:00:41.2]} 20... Nxh4 {[%clk 0:01:38.9]}
21. Rh1 {[%clk 0:00:33.8]} 21... g5 {[%clk 0:01:08.2]} 22. g3 {[%clk 0:00:25.2]}
22... Nxf3 {[%clk 0:01:02]} 23. Rxh5 {[%clk 0:00:19.1]} 23... Bg4 {[%clk
0:00:53.5]} 24. Rh6 {[%clk 0:00:14.7]} 24... Ne1 {[%clk 0:00:37.5]} 25. Rxe1
{[%clk 0:00:14.5]} 25... Rxe1 {[%clk 0:00:37.1]} 26. Qh2 {[%clk 0:00:14.1]}
26... Kf8 {[%clk 0:00:16.3]} 27. Rh8+ {[%clk 0:00:12.2]} 27... Ke7 {[%clk
0:00:16.9]} 28. Rxa8 {[%clk 0:00:11.4]} 28... Bf5 {[%clk 0:00:13.5]} 29. Qc2
{[%clk 0:00:08.2]} 29... Bxd3 {[%clk 0:00:06.2]} 30. Qxd3 {[%clk 0:00:09.1]}
30... Qh1 {[%clk 0:00:04]} 31. Qd2 {[%clk 0:00:08.7]} 31... Kd7 {[%clk
0:00:03.2]} 32. Rxa3 {[%clk 0:00:07.7]} 32... Qe4+ {[%clk 0:00:02.7]} 33. Qc2
{[%clk 0:00:06.7]} 1-0